Workbook

Sheet 중소형농기계
A1: 2022년 중소형농기계 지원사업 신청대상자
A3: ○ 사 업 량 : 1,000대
A4: ○ 지원기준 : 2,000천원(보조 50%, 자부담 50%)
A5: 연번 | B5: 기종명 | C5: 주 소 | E5: 성 명 (대표자) | F5: 신청대수 | G5: 단가 | H5: 합계 | I5: 보조 | J5: 자부담 | K5: 경지 면적 (㎡) | L5: 농업 경영체 등록 여,부 | M5: 마을명 (행정리) | N5: 연락처 (휴대폰) | O5: 비고
C6: 읍면 | D6: 도로명 주소 | F6: (대) | G6: (천원) | H6: (천원) | I6: (천원) | J6: (천원)
A7: 계 | B7: 총계 | F7: =SUM(F8:F32) -> 25 | G7: =SUM(G8:G32) -> 50,000 | H7: 50,000 | I7: 25,000 | J7: 25,000 | K7: =SUM(K8:K23) -> 0 | L7: =SUM(L8:L23) -> 0
F8: 1 | G8: 2,000 | H8: 2,000 | I8: 1,000 | J8: 1,000
F9: 1 | G9: 2,000 | H9: 2,000 | I9: 1,000 | J9: 1,000
F10: 1 | G10: 2,000 | H10: 2,000 | I10: 1,000 | J10: 1,000
F11: 1 | G11: 2,000 | H11: 2,000 | I11: 1,000 | J11: 1,000
F12: 1 | G12: 2,000 | H12: 2,000 | I12: 1,000 | J12: 1,000
F13: 1 | G13: 2,000 | H13: 2,000 | I13: 1,000 | J13: 1,000
F14: 1 | G14: 2,000 | H14: 2,000 | I14: 1,000 | J14: 1,000
F15: 1 | G15: 2,000 | H15: 2,000 | I15: 1,000 | J15: 1,000
F16: 1 | G16: 2,000 | H16: 2,000 | I16: 1,000 | J16: 1,000
F17: 1 | G17: 2,000 | H17: 2,000 | I17: 1,000 | J17: 1,000
F18: 1 | G18: 2,000 | H18: 2,000 | I18: 1,000 | J18: 1,000
F19: 1 | G19: 2,000 | H19: 2,000 | I19: 1,000 | J19: 1,000
F20: 1 | G20: 2,000 | H20: 2,000 | I20: 1,000 | J20: 1,000
F21: 1 | G21: 2,000 | H21: 2,000 | I21: 1,000 | J21: 1,000
F22: 1 | G22: 2,000 | H22: 2,000 | I22: 1,000 | J22: 1,000
F23: 1 | G23: 2,000 | H23: 2,000 | I23: 1,000 | J23: 1,000
F24: 1 | G24: 2,000 | H24: 2,000 | I24: 1,000 | J24: 1,000
F25: 1 | G25: 2,000 | H25: 2,000 | I25: 1,000 | J25: 1,000
F26: 1 | G26: 2,000 | H26: 2,000 | I26: 1,000 | J26: 1,000
F27: 1 | G27: 2,000 | H27: 2,000 | I27: 1,000 | J27: 1,000
F28: 1 | G28: 2,000 | H28: 2,000 | I28: 1,000 | J28: 1,000
F29: 1 | G29: 2,000 | H29: 2,000 | I29: 1,000 | J29: 1,000
F30: 1 | G30: 2,000 | H30: 2,000 | I30: 1,000 | J30: 1,000
F31: 1 | G31: 2,000 | H31: 2,000 | I31: 1,000 | J31: 1,000
F32: 1 | G32: 2,000 | H32: 2,000 | I32: 1,000 | J32: 1,000

Sheet 밭식량작물다목적농기계
A1: 2022년 승용관리기 지원사업 신청대상자
A2: ○ 사업량 : 7대
A3: ○ 지원기준 : 20,000천원(보조 50%, 자부담 50%)
A4: 연번 | B4: 주 소 | D4: 성 명 (대표자) | E4: 신청대수 | F4: 단가 | G4: 합계 | H4: 보조 | I4: 자부담 | J4: 경지 면적 (㎡) | K4: 농업 경영체 등록 여,부 | L4: 마을명 (행정리) | M4: 연락처 (휴대폰) | N4: 비고
B5: 읍면 | C5: 도로명 주소 | E5: (대) | F5: (천원) | G5: (천원) | H5: (천원) | I5: (천원)
A6: 계 | E6: =SUM(E7:E31) -> 16 | F6: =SUM(F7:F31) -> 320,000 | G6: 320,000 | H6: 160,000 | I6: 160,000 | J6: =SUM(J7:J22) -> 0 | K6: =SUM(K7:K22) -> 0
E7: 1 | F7: 20,000 | G7: =E7*F7 -> 20,000 | H7: =G7*0.5 -> 10,000 | I7: =G7*0.5 -> 10,000
E8: 1 | F8: 20,000 | G8: =E8*F8 -> 20000 | H8: =G8*0.5 -> 10,000 | I8: =G8*0.5 -> 10,000
E9: 1 | F9: 20,000 | G9: 20000 | H9: 10,000 | I9: 10,000
E10: 1 | F10: 20,000 | G10: 20000 | H10: 10,000 | I10: 10,000
E11: 1 | F11: 20,000 | G11: 20000 | H11: 10,000 | I11: 10,000
E12: 1 | F12: 20,000 | G12: 20000 | H12: 10,000 | I12: 10,000
E13: 1 | F13: 20,000 | G13: 20000 | H13: 10,000 | I13: 10,000
E14: 1 | F14: 20,000 | G14: 20000 | H14: 10,000 | I14: 10,000
E15: 1 | F15: 20,000 | G15: 20000 | H15: 10,000 | I15: 10,000
E16: 1 | F16: 20,000 | G16: 20000 | H16: 10,000 | I16: 10,000
E17: 1 | F17: 20,000 | G17: 20000 | H17: 10,000 | I17: 10,000
E18: 1 | F18: 20,000 | G18: 20000 | H18: 10,000 | I18: 10,000
E19: 1 | F19: 20,000 | G19: 20000 | H19: 10,000 | I19: 10,000
E20: 1 | F20: 20,000 | G20: 20000 | H20: 10,000 | I20: 10,000
E21: 1 | F21: 20,000 | G21: 20000 | H21: 10,000 | I21: 10,000
E22: 1 | F22: 20,000 | G22: 20000 | H22: 10,000 | I22: 10,000

Sheet 농작물피해방지(두더지포획기)
A1: 2022년 농작물 피해방지 포획기(두더지포획기) 지원사업 신청대상자
A3: ○ 지원기준 : 50천원/대(부가세 제외, 보조 50%, 자부담 50%) 부가세환급대상
A4: 연번 | B4: 주 소 | D4: 성 명 (대표자) | E4: 신청대수 | F4: 단가 | G4: 합계 | H4: 보조 | I4: 자부담 | J4: 경지 면적 (ha) | K4: 농업 경영체 등록 여,부 | L4: 마을명 (행정리) | M4: 연락처 (휴대폰) | N4: 비고
B5: 읍면 | C5: 도로명 주소 | E5: (대) | F5: (천원) | G5: (천원) | H5: (천원) | I5: (천원)
A6: 계 | E6: =SUM(E7:E22) -> 53 | F6: =SUM(F7:F22) -> 800 | G6: 2,650 | H6: 1,325 | I6: 1,325 | J6: =SUM(J7:J22) -> 0 | K6: =SUM(K7:K22) -> 0
E7: 1 | F7: 50 | G7: =E7*F7 -> 50 | H7: =G7*0.5 -> 25 | I7: =G7*0.5 -> 25
E8: 10 | F8: 50 | G8: =E8*F8 -> 500 | H8: =G8*0.5 -> 250 | I8: =G8*0.5 -> 250
E9: 5 | F9: 50 | G9: 250 | H9: 125 | I9: 125
E10: 6 | F10: 50 | G10: 300 | H10: 150 | I10: 150
E11: 7 | F11: 50 | G11: 350 | H11: 175 | I11: 175
E12: 5 | F12: 50 | G12: 250 | H12: 125 | I12: 125
E13: 10 | F13: 50 | G13: 500 | H13: 250 | I13: 250
E14: 1 | F14: 50 | G14: 50 | H14: 25 | I14: 25
E15: 1 | F15: 50 | G15: 50 | H15: 25 | I15: 25
E16: 1 | F16: 50 | G16: 50 | H16: 25 | I16: 25
E17: 1 | F17: 50 | G17: 50 | H17: 25 | I17: 25
E18: 1 | F18: 50 | G18: 50 | H18: 25 | I18: 25
E19: 1 | F19: 50 | G19: 50 | H19: 25 | I19: 25
E20: 1 | F20: 50 | G20: 50 | H20: 25 | I20: 25
E21: 1 | F21: 50 | G21: 50 | H21: 25 | I21: 25
E22: 1 | F22: 50 | G22: 50 | H22: 25 | I22: 25

Sheet 농작물피해방지(해충방제기)
A1: 2022년 농작물 피해방지 포획기(해충방제기) 지원사업 신청대상자
A3: ○ 지원기준 : 200 ~ 1,000천원/대(부가세 제외, 보조 50%, 자부담 50%) 부가세환급대상
A4: 연번 | B4: 주 소 | D4: 성 명 (대표자) | E4: 신청대수 | F4: 단가 | G4: 합계 | H4: 보조 | I4: 자부담 | J4: 경지 면적 (ha) | K4: 농업 경영체 등록 여,부 | L4: 마을명 (행정리) | M4: 연락처 (휴대폰) | N4: 비고
B5: 읍면 | C5: 도로명 주소 | E5: (대) | F5: (천원) | G5: (천원) | H5: (천원) | I5: (천원)
A6: 계 | E6: =SUM(E7:E22) -> 77 | F6: =SUM(F7:F22) -> 7,000 | G6: 34,200 | H6: 17,100 | I6: 17,100 | J6: =SUM(J7:J22) -> 0 | K6: =SUM(K7:K22) -> 0
E7: 3 | F7: 200 | G7: =E7*F7 -> 600 | H7: =G7*0.5 -> 300 | I7: =G7*0.5 -> 300
E8: 4 | F8: 400 | G8: =E8*F8 -> 1,600 | H8: =G8*0.5 -> 800 | I8: =G8*0.5 -> 800
E9: 5 | F9: 600 | G9: 3,000 | H9: 1,500 | I9: 1,500
E10: 5 | F10: 1,000 | G10: 5,000 | H10: 2,500 | I10: 2,500
E11: 5 | F11: 400 | G11: 2,000 | H11: 1,000 | I11: 1,000
E12: 5 | F12: 400 | G12: 2,000 | H12: 1,000 | I12: 1,000
E13: 5 | F13: 400 | G13: 2,000 | H13: 1,000 | I13: 1,000
E14: 5 | F14: 400 | G14: 2,000 | H14: 1,000 | I14: 1,000
E15: 5 | F15: 400 | G15: 2,000 | H15: 1,000 | I15: 1,000
E16: 5 | F16: 400 | G16: 2,000 | H16: 1,000 | I16: 1,000
E17: 5 | F17: 400 | G17: 2,000 | H17: 1,000 | I17: 1,000
E18: 5 | F18: 400 | G18: 2,000 | H18: 1,000 | I18: 1,000
E19: 5 | F19: 400 | G19: 2,000 | H19: 1,000 | I19: 1,000
E20: 5 | F20: 400 | G20: 2,000 | H20: 1,000 | I20: 1,000
E21: 5 | F21: 400 | G21: 2,000 | H21: 1,000 | I21: 1,000
E22: 5 | F22: 400 | G22: 2,000 | H22: 1,000 | I22: 1,000

Sheet 곡물건조기
A1: 2022년 곡물건조기(대형) 지원사업 신청대상자
A2: ○ 사업량 : 12대
A3: ○ 지원기준 : 10,000천원(보조 50%, 자부담 50%)
A4: 연번 | B4: 주 소 | D4: 성 명 (대표자) | E4: 신청대수 | F4: 단가 | G4: 합계 | H4: 보조 | I4: 자부담 | J4: 설치지번 | K4: 경지 면적 (ha) | L4: 농업 경영체 등록 여,부 | M4: 마을명 (행정리) | N4: 연락처 (휴대폰) | O4: 비고
B5: 읍면 | C5: 도로명 주소 | E5: (대) | F5: (천원) | G5: (천원) | H5: (천원) | I5: (천원)
A6: 계 | E6: =SUM(E7:E22) -> 16 | F6: =SUM(F7:F22) -> 160,000 | G6: 160,000 | H6: 80,000 | I6: 80,000 | K6: =SUM(K7:K22) -> 0 | L6: =SUM(L7:L22) -> 0
E7: 1 | F7: 10,000 | G7: =E7*F7 -> 10,000 | H7: =G7*0.5 -> 5,000 | I7: =G7*0.5 -> 5,000
E8: 1 | F8: 10,000 | G8: =E8*F8 -> 10,000 | H8: =G8*0.5 -> 5,000 | I8: =G8*0.5 -> 5,000
E9: 1 | F9: 10,000 | G9: 10,000 | H9: 5,000 | I9: 5,000
E10: 1 | F10: 10,000 | G10: 10,000 | H10: 5,000 | I10: 5,000
E11: 1 | F11: 10,000 | G11: 10,000 | H11: 5,000 | I11: 5,000
E12: 1 | F12: 10,000 | G12: 10,000 | H12: 5,000 | I12: 5,000
E13: 1 | F13: 10,000 | G13: 10,000 | H13: 5,000 | I13: 5,000
E14: 1 | F14: 10,000 | G14: 10,000 | H14: 5,000 | I14: 5,000
E15: 1 | F15: 10,000 | G15: 10,000 | H15: 5,000 | I15: 5,000
E16: 1 | F16: 10,000 | G16: 10,000 | H16: 5,000 | I16: 5,000
E17: 1 | F17: 10,000 | G17: 10,000 | H17: 5,000 | I17: 5,000
E18: 1 | F18: 10,000 | G18: 10,000 | H18: 5,000 | I18: 5,000
E19: 1 | F19: 10,000 | G19: 10,000 | H19: 5,000 | I19: 5,000
E20: 1 | F20: 10,000 | G20: 10,000 | H20: 5,000 | I20: 5,000
E21: 1 | F21: 10,000 | G21: 10,000 | H21: 5,000 | I21: 5,000
E22: 1 | F22: 10,000 | G22: 10,000 | H22: 5,000 | I22: 5,000

Sheet 육묘용파종기
A1: 2022년 육묘용파종기 지원사업 신청대상자
A2: ○ 사업량 : 9대
A3: ○ 지원기준 : 3,000천원(보조 50%, 자부담 50%)
A4: 연번 | B4: 주 소 | D4: 성 명 (대표자) | E4: 신청대수 | F4: 단가 | G4: 합계 | H4: 보조 | I4: 자부담 | J4: 경지 면적 (ha) | K4: 농업 경영체 등록 여,부 | L4: 마을명 (행정리) | M4: 연락처 (휴대폰) | N4: 비고
B5: 읍면 | C5: 도로명 주소 | E5: (대) | F5: (천원) | G5: (천원) | H5: (천원) | I5: (천원)
A6: 계 | E6: =SUM(E7:E22) -> 16 | F6: =SUM(F7:F22) -> 48,000 | G6: 48,000 | H6: 24,000 | I6: 24,000 | J6: =SUM(J7:J22) -> 0 | K6: =SUM(K7:K22) -> 0
E7: 1 | F7: 3,000 | G7: =E7*F7 -> 3,000 | H7: =G7*0.5 -> 1,500 | I7: =G7*0.5 -> 1,500
E8: 1 | F8: 3,000 | G8: =E8*F8 -> 3,000 | H8: =G8*0.5 -> 1,500 | I8: =G8*0.5 -> 1,500
E9: 1 | F9: 3,000 | G9: 3,000 | H9: 1,500 | I9: 1,500
E10: 1 | F10: 3,000 | G10: 3,000 | H10: 1,500 | I10: 1,500
E11: 1 | F11: 3,000 | G11: 3,000 | H11: 1,500 | I11: 1,500
E12: 1 | F12: 3,000 | G12: 3,000 | H12: 1,500 | I12: 1,500
E13: 1 | F13: 3,000 | G13: 3,000 | H13: 1,500 | I13: 1,500
E14: 1 | F14: 3,000 | G14: 3,000 | H14: 1,500 | I14: 1,500
E15: 1 | F15: 3,000 | G15: 3,000 | H15: 1,500 | I15: 1,500
E16: 1 | F16: 3,000 | G16: 3,000 | H16: 1,500 | I16: 1,500
E17: 1 | F17: 3,000 | G17: 3,000 | H17: 1,500 | I17: 1,500
E18: 1 | F18: 3,000 | G18: 3,000 | H18: 1,500 | I18: 1,500
E19: 1 | F19: 3,000 | G19: 3,000 | H19: 1,500 | I19: 1,500
E20: 1 | F20: 3,000 | G20: 3,000 | H20: 1,500 | I20: 1,500
E21: 1 | F21: 3,000 | G21: 3,000 | H21: 1,500 | I21: 1,500
E22: 1 | F22: 3,000 | G22: 3,000 | H22: 1,500 | I22: 1,500

Sheet 벼종자소독기
A1: 2022년 벼 종자소독기 지원사업 신청대상자
A2: ○ 사업량 : 3대
A3: ○ 지원기준 : 3,000천원(보조 50%, 자부담 50%)
A4: 연번 | B4: 주 소 | D4: 성 명 (대표자) | E4: 신청대수 | F4: 단가 | G4: 합계 | H4: 보조 | I4: 자부담 | J4: 경지 면적 (ha) | K4: 농업 경영체 등록 여,부 | L4: 마을명 (행정리) | M4: 연락처 (휴대폰) | N4: 비고
B5: 읍면 | C5: 도로명 주소 | E5: (대) | F5: (천원) | G5: (천원) | H5: (천원) | I5: (천원)
A6: 계 | E6: =SUM(E7:E22) -> 16 | F6: =SUM(F7:F22) -> 48,000 | G6: 48,000 | H6: 24,000 | I6: 24,000 | J6: =SUM(J7:J22) -> 0 | K6: =SUM(K7:K22) -> 0
E7: 1 | F7: 3,000 | G7: =E7*F7 -> 3,000 | H7: =G7*0.5 -> 1,500 | I7: =G7*0.5 -> 1,500
E8: 1 | F8: 3,000 | G8: =E8*F8 -> 3,000 | H8: =G8*0.5 -> 1,500 | I8: =G8*0.5 -> 1,500
E9: 1 | F9: 3,000 | G9: 3,000 | H9: 1,500 | I9: 1,500
E10: 1 | F10: 3,000 | G10: 3,000 | H10: 1,500 | I10: 1,500
E11: 1 | F11: 3,000 | G11: 3,000 | H11: 1,500 | I11: 1,500
E12: 1 | F12: 3,000 | G12: 3,000 | H12: 1,500 | I12: 1,500
E13: 1 | F13: 3,000 | G13: 3,000 | H13: 1,500 | I13: 1,500
E14: 1 | F14: 3,000 | G14: 3,000 | H14: 1,500 | I14: 1,500
E15: 1 | F15: 3,000 | G15: 3,000 | H15: 1,500 | I15: 1,500
E16: 1 | F16: 3,000 | G16: 3,000 | H16: 1,500 | I16: 1,500
E17: 1 | F17: 3,000 | G17: 3,000 | H17: 1,500 | I17: 1,500
E18: 1 | F18: 3,000 | G18: 3,000 | H18: 1,500 | I18: 1,500
E19: 1 | F19: 3,000 | G19: 3,000 | H19: 1,500 | I19: 1,500
E20: 1 | F20: 3,000 | G20: 3,000 | H20: 1,500 | I20: 1,500
E21: 1 | F21: 3,000 | G21: 3,000 | H21: 1,500 | I21: 1,500
E22: 1 | F22: 3,000 | G22: 3,000 | H22: 1,500 | I22: 1,500

Sheet 육묘상자 적재기,세척기
A1: 2022년 육묘상자 적재기, 세척기 지원사업 신청대상자
A2: ○ 사업량 : 2대
A3: ○ 지원기준 : 2,500천원(보조 50%, 자부담 50%)
A4: 연번 | B4: 주 소 | D4: 성 명 (대표자) | E4: 신청대수 | F4: 단가 | G4: 합계 | H4: 보조 | I4: 자부담 | J4: 경지 면적 (ha) | K4: 농업 경영체 등록 여,부 | L4: 마을명 (행정리) | M4: 연락처 (휴대폰) | N4: 비고
B5: 읍면 | C5: 도로명 주소 | E5: (대) | F5: (천원) | G5: (천원) | H5: (천원) | I5: (천원)
A6: 계 | E6: =SUM(E7:E22) -> 16 | F6: =SUM(F7:F22) -> 40,000 | G6: 40,000 | H6: 20,000 | I6: 20,000 | J6: =SUM(J7:J22) -> 0 | K6: =SUM(K7:K22) -> 0
E7: 1 | F7: 2,500 | G7: =E7*F7 -> 2,500 | H7: =G7*0.5 -> 1,250 | I7: =G7*0.5 -> 1,250
E8: 1 | F8: 2,500 | G8: =E8*F8 -> 2,500 | H8: =G8*0.5 -> 1,250 | I8: =G8*0.5 -> 1,250
E9: 1 | F9: 2,500 | G9: 2,500 | H9: 1,250 | I9: 1,250
E10: 1 | F10: 2,500 | G10: 2,500 | H10: 1,250 | I10: 1,250
E11: 1 | F11: 2,500 | G11: 2,500 | H11: 1,250 | I11: 1,250
E12: 1 | F12: 2,500 | G12: 2,500 | H12: 1,250 | I12: 1,250
E13: 1 | F13: 2,500 | G13: 2,500 | H13: 1,250 | I13: 1,250
E14: 1 | F14: 2,500 | G14: 2,500 | H14: 1,250 | I14: 1,250
E15: 1 | F15: 2,500 | G15: 2,500 | H15: 1,250 | I15: 1,250
E16: 1 | F16: 2,500 | G16: 2,500 | H16: 1,250 | I16: 1,250
E17: 1 | F17: 2,500 | G17: 2,500 | H17: 1,250 | I17: 1,250
E18: 1 | F18: 2,500 | G18: 2,500 | H18: 1,250 | I18: 1,250
E19: 1 | F19: 2,500 | G19: 2,500 | H19: 1,250 | I19: 1,250
E20: 1 | F20: 2,500 | G20: 2,500 | H20: 1,250 | I20: 1,250
E21: 1 | F21: 2,500 | G21: 2,500 | H21: 1,250 | I21: 1,250
E22: 1 | F22: 2,500 | G22: 2,500 | H22: 1,250 | I22: 1,250

Sheet 농업용무인보트
A1: 2022년 농업용무인보트 지원사업 신청대상자
A3: ○ 사업량 : 5대
A4: ○ 지원기준 : 3,000천원(보조 50%, 자부담 50%)
A5: 연번 | B5: 주 소 | D5: 성 명 (대표자) | E5: 신청대수 | F5: 단가 | G5: 합계 | H5: 보조 | I5: 자부담 | J5: 경지 면적 (ha) | K5: 농업 경영체 등록 여,부 | L5: 마을명 (행정리) | M5: 연락처 (휴대폰) | N5: 비고
B6: 읍면 | C6: 도로명 주소 | E6: (대) | F6: (천원) | G6: (천원) | H6: (천원) | I6: (천원)
A7: 계 | E7: =SUM(E8:E23) -> 16 | F7: =SUM(F8:F23) -> 48000 | G7: 48000 | H7: 24000 | I7: 24000 | J7: =SUM(J8:J23) -> 0 | K7: =SUM(K8:K23) -> 0
E8: 1 | F8: 3,000 | G8: =E8*F8 -> 3,000 | H8: =G8*0.5 -> 1,500 | I8: =G8*0.5 -> 1,500
E9: 1 | F9: 3,000 | G9: =E9*F9 -> 3,000 | H9: =G9*0.5 -> 1,500 | I9: =G9*0.5 -> 1,500
E10: 1 | F10: 3,000 | G10: 3,000 | H10: 1,500 | I10: 1,500
E11: 1 | F11: 3,000 | G11: 3,000 | H11: 1,500 | I11: 1,500
E12: 1 | F12: 3,000 | G12: 3,000 | H12: 1,500 | I12: 1,500
E13: 1 | F13: 3,000 | G13: 3,000 | H13: 1,500 | I13: 1,500
E14: 1 | F14: 3,000 | G14: 3,000 | H14: 1,500 | I14: 1,500
E15: 1 | F15: 3,000 | G15: 3,000 | H15: 1,500 | I15: 1,500
E16: 1 | F16: 3,000 | G16: 3,000 | H16: 1,500 | I16: 1,500
E17: 1 | F17: 3,000 | G17: 3,000 | H17: 1,500 | I17: 1,500
E18: 1 | F18: 3,000 | G18: 3,000 | H18: 1,500 | I18: 1,500
E19: 1 | F19: 3,000 | G19: 3,000 | H19: 1,500 | I19: 1,500
E20: 1 | F20: 3,000 | G20: 3,000 | H20: 1,500 | I20: 1,500
E21: 1 | F21: 3,000 | G21: 3,000 | H21: 1,500 | I21: 1,500
E22: 1 | F22: 3,000 | G22: 3,000 | H22: 1,500 | I22: 1,500
E23: 1 | F23: 3,000 | G23: 3,000 | H23: 1,500 | I23: 1,500
